[Event "51st La Roda Open 2025"]
[Site "La Roda"]
[Date "2025.04.15"]
[Round "1.8"]
[White "Moreno Peinado, Julian Salvador"]
[Black "Valmana Canto, Jaime"]
[Result "0-1"]
[Annotator "RC"]
[ECO "B29"]
[WhiteElo "1878"]
[BlackElo "2385"]
[PlyCount "78"]
[EventDate "2025.04.15"]
[EventType "swiss"]
[EventCountry "ESP"]
[SourceTitle "playchess.com"]
[Source "ChessBase"]
[SourceQuality "1"]
[TimeControl "5400+30"]

1. e4 {[%emt 0:00:07]} c5 {[%emt 0:01:40]} 2. Nc3 {[%emt 0:00:46]} Nc6 {[%emt 0:03:13]} 3. Nf3 {[%emt 0:01:10]} Nf6 {[%emt 0:03:44]} 4. g3 {[%emt 0:06:02]} d5 {[%emt 0:11:03]} 5. exd5 {[%emt 0:09:20]} Nxd5 {[%emt 0:00:06]} 6. h3 {[%emt 0:02:06]} Nc7 {[%emt 0:02:54]} 7. Bg2 {[%emt 0:02:40]} e5 {[%emt 0:00:10]} 8. d3 {[%emt 0:06:12]} Be7 {[%emt 0:00:09]} 9. O-O {[%emt 0:02:07]} O-O {[%emt 0:00:13]} 10. Re1 {[%emt 0:02:31]} f6 {[%emt 0:00:07]} 11. a4 {[%emt 0:09:12]} Be6 {[%emt 0:10:23]} 12. Kh2 {[%emt 0:03:55]} Qd7 {[%emt 0:02:29]} 13. Ng1 {[%emt 0:13:32]} Bf7 {[%emt 0:06:14]} 14. f4 {[%emt 0:05:43]} exf4 {[%emt 0:00:20]} 15. Bxf4 {[%emt 0:03:26]} Ne6 {[%emt 0:00:37]} 16. Nge2 {[%emt 0:07:55]} Nxf4 {[%emt 0:05:43]} 17. Nxf4 {[%emt 0:01:23]} Bd6 {[%emt 0:00:50]} 18. Ncd5 {[%emt 0:05:28]} Kh8 {[%emt 0:02:37]} 19. c4 {[%emt 0:01:14]} Nd4 {[%emt 0:00:34]} 20. a5 {[%emt 0:05:12]} Rae8 {[%emt 0:00:17]} 21. Re4 {[%emt 0:06:25]} Be5 {[%emt 0:03:24]} 22. Qa4 {[%emt 0:01:59]} Qd6 {[%emt 0:00:33]} 23. b4 {[%emt 0:02:00]} g5 {[%emt 0:00:12]} 24. bxc5 {[%emt 0:00:36]} Qb8 {[%emt 0:00:33]} 25. Rae1 {[%emt 0:01:15]} gxf4 {[%emt 0:00:26]} 26. gxf4 {[%emt 0:00:03]} Bxd5 {[%emt 0:07:08]} 27. cxd5 {[%emt 0:01:09]} Bxf4+ {[%emt 0:00:02]} 28. Kh1 {[%emt 0:00:17]} Be5 {[%emt 0:00:04]} 29. Rxd4 {[%emt 0:00:41]} Bxd4 {[%emt 0:00:09]} 30. Rxe8 {[%emt 0:00:03]} Rxe8 {[%emt 0:00:01]} 31. Qxd4 {[%emt 0:00:12]} Re1+ {[%emt 0:00:02]} 32. Bf1 {[%emt 0:00:32]} Rxf1+ {[%emt 0:00:06]} 33. Kg2 {[%emt 0:00:02]} Rf5 {[%emt 0:02:56]} 34. d6 {[%emt 0:00:08]} Qg8+ {[%emt 0:01:31]} 35. Kh2 {[%emt 0:00:06]} Qa2+ {[%emt 0:00:46]} 36. Kg3 {[%emt 0:00:23]} Rg5+ {[%emt 0:00:02]} 37. Kh4 {[%emt 0:00:45]} Qf7 {[%emt 0:00:04]} 38. Qg4 {[%emt 0:00:46]} Rxg4+ {[%emt 0:00:25]} 39. hxg4 {[%emt 0:00:03]} Qd5 {[%emt 0:00:15]} 0-1

[Event "51st La Roda Open 2025"]
[Site "La Roda"]
[Date "2025.04.15"]
[Round "1.9"]
[White "Yordanov, Lachezar"]
[Black "Juan Mas, Santiago"]
[Result "1-0"]
[Annotator "RC"]
[ECO "A58"]
[WhiteElo "2364"]
[BlackElo "1877"]
[PlyCount "99"]
[EventDate "2025.04.15"]
[EventType "swiss"]
[EventCountry "ESP"]
[SourceTitle "playchess.com"]
[Source "ChessBase"]
[SourceQuality "1"]
[TimeControl "5400+30"]

1. d4 {[%emt 0:00:03]} c5 {[%emt 0:00:32]} 2. d5 {[%emt 0:00:06]} g6 {[%emt 0:00:05]} 3. c4 {[%emt 0:00:05]} Bg7 {[%emt 0:00:07]} 4. e4 {[%emt 0:00:05]} d6 {[%emt 0:00:24]} 5. Nc3 {[%emt 0:00:26]} a6 {[%emt 0:02:49]} 6. Be2 {[%emt 0:04:04]} b5 {[%emt 0:06:26]} 7. cxb5 {[%emt 0:00:08]} Nf6 {[%emt 0:00:07]} 8. bxa6 {[%emt 0:00:35]} O-O {[%emt 0:00:42]} 9. Nf3 {[%emt 0:00:06]} Bg4 {[%emt 0:05:33]} 10. O-O {[%emt 0:01:49]} Nxa6 {[%emt 0:00:47]} 11. a4 {[%emt 0:02:07]} Nb4 {[%emt 0:10:12]} 12. Ra3 {[%emt 0:01:53]} Nd7 {[%emt 0:07:26]} 13. Nb5 {[%emt 0:03:28]} Nf6 {[%emt 0:11:24]} 14. h3 {[%emt 0:05:30]} Bc8 {[%emt 0:04:15]} 15. Nc3 {[%emt 0:05:07]} Ba6 {[%emt 0:04:57]} 16. b3 {[%emt 0:08:54]} Bxe2 {[%emt 0:15:23]} 17. Qxe2 {[%emt 0:00:45]} Ne8 {[%emt 0:01:24]} 18. Nb5 {[%emt 0:04:32]} Nc7 {[%emt 0:01:11]} 19. Nxc7 {[%emt 0:00:27]} Qxc7 {[%emt 0:00:09]} 20. Bb2 {[%emt 0:00:13]} Bh6 {[%emt 0:05:46]} 21. Rd1 {[%emt 0:01:38]} e5 {[%emt 0:05:17]} 22. dxe6 {[%emt 0:02:49]} fxe6 {[%emt 0:00:07]} 23. Ne1 {[%emt 0:01:52]} Rf7 {[%emt 0:06:43]} 24. Nd3 {[%emt 0:05:08]} Raf8 {[%emt 0:00:49]} 25. Rf1 {[%emt 0:00:01]} Qb6 {[%emt 0:06:40]} 26. Bc1 {[%emt 0:04:03]} Bxc1 {[%emt 0:01:49]} 27. Nxc1 {[%emt 0:00:01]} Nc6 {[%emt 0:01:09]} 28. Qc4 {[%emt 0:01:19]} Nd4 {[%emt 0:01:02]} 29. Ne2 {[%emt 0:01:40]} Nxe2+ {[%emt 0:00:29]} 30. Qxe2 {[%emt 0:00:01]} Qb4 {[%emt 0:00:11]} 31. Raa1 {[%emt 0:03:12]} Qxb3 {[%emt 0:00:29]} 32. a5 {[%emt 0:00:01]} d5 {[%emt 0:01:21]} 33. exd5 {[%emt 0:00:08]} Qxd5 {[%emt 0:00:20]} 34. a6 {[%emt 0:00:09]} Ra7 {[%emt 0:00:25]} 35. Rfe1 {[%emt 0:00:48]} Re8 {[%emt 0:00:31]} 36. Qb5 {[%emt 0:01:50]} Rea8 {[%emt 0:00:52]} 37. Qb6 {[%emt 0:01:18]} Qc4 {[%emt 0:00:32]} 38. Rec1 {[%emt 0:11:28]} Qe2 {[%emt 0:00:07]} 39. Qxc5 {[%emt 0:00:24]} Rxa6 {[%emt 0:00:10]} 40. Rxa6 {[%emt 0:00:03]} Qxa6 {[%emt 0:00:15]} 41. Qe5 {[%emt 0:00:04]} Qa2 {[%emt 0:00:52]} 42. Rd1 {[%emt 0:02:00]} Rf8 {[%emt 0:00:54]} 43. Qe3 {[%emt 0:00:01]} Qa6 {[%emt 0:00:26]} 44. h4 {[%emt 0:00:44]} Qc8 {[%emt 0:00:45]} 45. h5 {[%emt 0:00:23]} gxh5 {[%emt 0:00:32]} 46. Qg5+ {[%emt 0:00:23]} Kh8 {[%emt 0:00:22]} 47. Qe5+ {[%emt 0:00:01]} Kg8 {[%emt 0:00:13]} 48. Rd3 {[%emt 0:03:00]} Qc1+ {[%emt 0:00:11]} 49. Kh2 {[%emt 0:00:01]} Qf4+ {[%emt 0:00:12]} 50. Rg3+ {[%emt 0:00:05]} 1-0

[Event "51st La Roda Open 2025"]
[Site "La Roda"]
[Date "2025.04.15"]
[Round "1.10"]
[White "Amoes, Francisco"]
[Black "Sierra Vallina, Lionel"]
[Result "0-1"]
[Annotator "RC"]
[ECO "D11"]
[WhiteElo "1875"]
[BlackElo "2342"]
[PlyCount "66"]
[EventDate "2025.04.15"]
[EventType "swiss"]
[EventCountry "ESP"]
[SourceTitle "playchess.com"]
[Source "ChessBase"]
[SourceQuality "1"]
[TimeControl "5400+30"]

1. d4 {[%emt 0:00:04]} d5 {[%emt 0:00:15]} 2. Nf3 {[%emt 0:00:14]} Nf6 {[%emt 0:00:11]} 3. g3 {[%emt 0:00:09]} Bf5 {[%emt 0:01:15]} 4. Bg2 {[%emt 0:00:15]} e6 {[%emt 0:00:20]} 5. O-O {[%emt 0:00:50]} Be7 {[%emt 0:03:41]} 6. c4 {[%emt 0:00:52]} c6 {[%emt 0:00:34]} 7. Nc3 {[%emt 0:00:15]} h6 {[%emt 0:01:01]} 8. Qb3 {[%emt 0:32:28]} Qb6 {[%emt 0:01:07]} 9. Qxb6 {[%emt 0:04:43]} axb6 {[%emt 0:00:08]} 10. cxd5 {[%emt 0:00:30]} exd5 {[%emt 0:02:25]} 11. Bf4 {[%emt 0:03:01]} Nbd7 {[%emt 0:04:10]} 12. Ne5 {[%emt 0:00:26]} b5 {[%emt 0:11:38]} 13. Nxd7 {[%emt 0:03:38]} Bxd7 {[%emt 0:09:49]} 14. Be5 {[%emt 0:00:42]} b4 {[%emt 0:02:49]} 15. Nd1 {[%emt 0:03:43]} O-O {[%emt 0:00:19]} 16. Ne3 {[%emt 0:09:09]} Ra6 {[%emt 0:02:07]} 17. Rfb1 {[%emt 0:00:34]} Rfa8 {[%emt 0:04:49]} 18. a3 {[%emt 0:00:46]} b5 {[%emt 0:17:44]} 19. Nc2 {[%emt 0:06:18]} bxa3 {[%emt 0:01:05]} 20. bxa3 {[%emt 0:00:26]} Bxa3 {[%emt 0:01:04]} 21. Rxa3 {[%emt 0:09:15]} Rxa3 {[%emt 0:00:16]} 22. Nxa3 {[%emt 0:00:02]} Rxa3 {[%emt 0:00:06]} 23. f3 {[%emt 0:00:23]} Ra2 {[%emt 0:04:27]} 24. Kf1 {[%emt 0:07:01]} Bf5 {[%emt 0:01:46]} 25. Rc1 {[%emt 0:00:58]} b4 {[%emt 0:00:54]} 26. Bxf6 {[%emt 0:06:51]} gxf6 {[%emt 0:00:24]} 27. e4 {[%emt 0:00:10]} dxe4 {[%emt 0:04:47]} 28. fxe4 {[%emt 0:00:02]} Rxg2 {[%emt 0:00:37]} 29. exf5 {[%emt 0:03:31]} Rxh2 {[%emt 0:00:05]} 30. Rxc6 {[%emt 0:01:28]} b3 {[%emt 0:00:23]} 31. Rc8+ {[%emt 0:00:16]} Kg7 {[%emt 0:00:06]} 32. Rb8 {[%emt 0:00:19]} b2 {[%emt 0:00:09]} 33. Kg1 {[%emt 0:00:18]} Rc2 {[%emt 0:00:06]} 0-1

[Event "51st La Roda Open 2025"]
[Site "La Roda"]
[Date "2025.04.15"]
[Round "1.11"]
[White "Centron Antuna, Daniel"]
[Black "Goncalves, Goncalo Cravo Jesus"]
[Result "1-0"]
[Annotator "RC"]
[ECO "B12"]
[WhiteElo "2299"]
[BlackElo "1871"]
[PlyCount "85"]
[EventDate "2025.04.15"]
[EventType "swiss"]
[EventCountry "ESP"]
[SourceTitle "playchess.com"]
[Source "ChessBase"]
[SourceQuality "1"]
[TimeControl "5400+30"]

1. e4 {[%emt 0:00:03]} c6 {[%emt 0:00:21]} 2. d4 {[%emt 0:00:06]} d5 {[%emt 0:00:08]} 3. e5 {[%emt 0:00:06]} Bf5 {[%emt 0:00:11]} 4. Nf3 {[%emt 0:00:07]} e6 {[%emt 0:00:07]} 5. Be2 {[%emt 0:00:11]} Ne7 {[%emt 0:00:33]} 6. O-O {[%emt 0:00:23]} Ng6 {[%emt 0:00:40]} 7. Be3 {[%emt 0:02:53]} Nd7 {[%emt 0:00:40]} 8. Nbd2 {[%emt 0:01:23]} f6 {[%emt 0:04:20]} 9. Ne1 {[%emt 0:10:47]} h5 {[%emt 0:09:43]} 10. Bxh5 {[%emt 0:13:44]} fxe5 {[%emt 0:03:33]} 11. g4 {[%emt 0:10:37]} Rxh5 {[%emt 0:15:35]} 12. gxh5 {[%emt 0:00:06]} Nh8 {[%emt 0:04:15]} 13. dxe5 {[%emt 0:06:42]} Nxe5 {[%emt 0:03:18]} 14. Bf4 {[%emt 0:03:32]} Nhf7 {[%emt 0:02:20]} 15. Qe2 {[%emt 0:06:10]} Qf6 {[%emt 0:07:35]} 16. Bg3 {[%emt 0:04:29]} Bc5 {[%emt 0:07:25]} 17. Nd3 {[%emt 0:06:14]} Nxd3 {[%emt 0:09:06]} 18. cxd3 {[%emt 0:00:02]} Bd4 {[%emt 0:05:25]} 19. Rfe1 {[%emt 0:05:25]} O-O-O {[%emt 0:04:03]} 20. Nb3 {[%emt 0:01:39]} Bxb2 {[%emt 0:02:54]} 21. Rab1 {[%emt 0:00:07]} Bd4 {[%emt 0:01:52]} 22. Rec1 {[%emt 0:03:10]} Ng5 {[%emt 0:04:49]} 23. h4 {[%emt 0:05:46]} Bxf2+ {[%emt 0:04:09]} 24. Bxf2 {[%emt 0:02:11]} Nh3+ {[%emt 0:02:28]} 25. Kh2 {[%emt 0:00:08]} Bxd3 {[%emt 0:03:48]} 26. Qxd3 {[%emt 0:00:41]} Nxf2 {[%emt 0:00:13]} 27. Qe2 {[%emt 0:09:53]} Qxh4+ {[%emt 0:00:44]} 28. Kg2 {[%emt 0:00:02]} Ne4 {[%emt 0:00:19]} 29. Qf3 {[%emt 0:01:49]} Qe7 {[%emt 0:02:28]} 30. Qg4 {[%emt 0:01:26]} Nf6 {[%emt 0:01:41]} 31. Qg6 {[%emt 0:00:39]} Rh8 {[%emt 0:00:27]} 32. Na5 {[%emt 0:01:43]} Qa3 {[%emt 0:00:43]} 33. Nxb7 {[%emt 0:01:28]} Qxa2+ {[%emt 0:00:24]} 34. Kg1 {[%emt 0:00:39]} Qa4 {[%emt 0:00:42]} 35. Nd6+ {[%emt 0:01:19]} Kc7 {[%emt 0:00:27]} 36. Nb5+ {[%emt 0:01:03]} Kc8 {[%emt 0:00:11]} 37. Rxc6+ {[%emt 0:00:25]} Kd8 {[%emt 0:00:31]} 38. Rd6+ {[%emt 0:00:32]} Kc8 {[%emt 0:00:37]} 39. Rc1+ {[%emt 0:01:21]} Kb8 {[%emt 0:00:04]} 40. Qg3 {[%emt 0:00:31]} e5 {[%emt 0:01:05]} 41. Rb1 {[%emt 0:00:41]} Ne4 {[%emt 0:00:34]} 42. Qxg7 {[%emt 0:00:38]} Nxd6 {[%emt 0:00:31]} 43. Nxd6+ {[%emt 0:00:23]} 1-0

[Event "51st La Roda Open 2025"]
[Site "La Roda"]
[Date "2025.04.15"]
[Round "1.12"]
[White "Da Silva, Reinaldo S.B."]
[Black "Gonzalez Castillo, Jose Javier"]
[Result "0-1"]
[Annotator "RC"]
[ECO "A30"]
[WhiteElo "2340"]
[BlackElo "2297"]
[PlyCount "48"]
[EventDate "2025.04.15"]
[EventType "swiss"]
[EventCountry "ESP"]
[SourceTitle "playchess.com"]
[Source "ChessBase"]
[SourceQuality "1"]
[TimeControl "5400+30"]

1. Nf3 {[%emt 1:31:00]} c5 {[%emt 0:00:53]} 2. b3 {[%emt 0:00:00]} Nf6 {[%emt 0:03:02]} 3. Bb2 {[%emt 0:00:00]} e6 {[%emt 0:00:39]} 4. e3 {[%emt 0:00:00]} Be7 {[%emt 0:00:09]} 5. Be2 {[%emt 0:00:00]} b6 {[%emt 0:00:10]} 6. O-O {[%emt 0:00:00]} Bb7 {[%emt 0:00:06]} 7. d4 {[%emt 0:00:00]} O-O {[%emt 0:01:39]} 8. c4 {[%emt 0:00:00]} cxd4 {[%emt 0:01:37]} 9. Nxd4 {[%emt 0:00:00]} Qc8 {[%emt 0:04:38]} 10. Nd2 {[%emt 0:00:00]} Rd8 {[%emt 0:04:06]} 11. a3 {[%emt 0:00:00]} d6 {[%emt 0:05:30]} 12. Bf3 {[%emt 0:00:00]} Nbd7 {[%emt 0:00:19]} 13. Qe2 {[%emt 0:00:00]} Bxf3 {[%emt 0:07:11]} 14. gxf3 {[%emt 0:00:00]} Nf8 {[%emt 0:03:43]} 15. f4 {[%emt 0:00:00]} e5 {[%emt 0:02:19]} 16. Nb5 {[%emt 0:00:00]} Ng6 {[%emt 0:03:08]} 17. fxe5 {[%emt 0:00:00]} dxe5 {[%emt 0:01:00]} 18. Rad1 {[%emt 0:00:00]} a6 {[%emt 0:05:47]} 19. Nc3 {[%emt 0:00:00]} Nh4 {[%emt 0:01:19]} 20. Nde4 {[%emt 0:00:00]} Qh3 {[%emt 0:04:44]} 21. Nxf6+ {[%emt 0:00:00]} gxf6 {[%emt 0:00:52]} 22. Rxd8+ {[%emt 0:00:00]} Rxd8 {[%emt 0:00:13]} 23. f3 {[%emt 0:00:00]} Kh8 {[%emt 0:04:00]} 24. Kh1 {[%emt 0:00:00]} Rd2 {[%emt 0:00:28]} 0-1

[Event "51st La Roda Open 2025"]
[Site "La Roda"]
[Date "2025.04.15"]
[Round "1.13"]
[White "Gomez Falagan, Daniel"]
[Black "Alvarez Sanchez, Mauro"]
[Result "1-0"]
[Annotator "RC"]
[ECO "E91"]
[WhiteElo "2254"]
[BlackElo "1863"]
[PlyCount "57"]
[EventDate "2025.04.15"]
[EventType "swiss"]
[EventCountry "ESP"]
[SourceTitle "playchess.com"]
[Source "ChessBase"]
[SourceQuality "1"]
[TimeControl "5400+30"]

1. d4 {[%emt 0:00:03]} Nf6 {[%emt 0:00:11]} 2. c4 {[%emt 0:00:06]} g6 {[%emt 0:00:18]} 3. Nc3 {[%emt 0:00:09]} Bg7 {[%emt 0:00:19]} 4. e4 {[%emt 0:00:11]} d6 {[%emt 0:00:28]} 5. Nf3 {[%emt 0:00:11]} Bg4 {[%emt 0:01:15]} 6. Be2 {[%emt 0:00:42]} Nbd7 {[%emt 0:00:55]} 7. Be3 {[%emt 0:02:08]} O-O {[%emt 0:01:29]} 8. O-O {[%emt 0:01:11]} Bxf3 {[%emt 0:04:26]} 9. Bxf3 {[%emt 0:01:05]} e5 {[%emt 0:00:07]} 10. d5 {[%emt 0:02:38]} Kh8 {[%emt 0:01:14]} 11. b4 {[%emt 0:08:33]} Ne8 {[%emt 0:05:13]} 12. c5 {[%emt 1:19:33]} f5 {[%emt 0:04:37]} 13. cxd6 {[%emt 0:00:00]} Nxd6 {[%emt 0:00:34]} 14. Rc1 {[%emt 0:00:00]} Nf6 {[%emt 0:14:04]} 15. exf5 {[%emt 0:00:00]} Nxf5 {[%emt 0:07:50]} 16. Bg5 {[%emt 0:00:00]} Qd7 {[%emt 0:00:48]} 17. Re1 {[%emt 0:00:00]} Nd4 {[%emt 0:04:12]} 18. Be4 {[%emt 0:00:00]} Nxe4 {[%emt 0:06:52]} 19. Nxe4 {[%emt 0:00:00]} a5 {[%emt 0:08:55]} 20. a3 {[%emt 0:00:00]} axb4 {[%emt 0:00:37]} 21. axb4 {[%emt 0:00:00]} Ra2 {[%emt 0:00:41]} 22. Be3 {[%emt 0:00:00]} Qxd5 {[%emt 0:01:28]} 23. Nc3 {[%emt 0:00:00]} Qf7 {[%emt 0:01:35]} 24. Nxa2 {[%emt 0:00:00]} Qxa2 {[%emt 0:00:10]} 25. Rxc7 {[%emt 0:00:00]} Qd5 {[%emt 0:01:35]} 26. Qc1 {[%emt 0:00:00]} Qb5 {[%emt 0:02:03]} 27. Bh6 {[%emt 0:00:00]} Ne6 {[%emt 0:04:12]} 28. Bxg7+ {[%emt 0:00:00]} Nxg7 {[%emt 0:00:06]} 29. Qc5 {[%emt 0:00:00]} 1-0

[Event "51st La Roda Open 2025"]
[Site "La Roda"]
[Date "2025.04.15"]
[Round "1.14"]
[White "Roche Fraile, Carlos"]
[Black "Goncalves, Samuel Jesus P"]
[Result "0-1"]
[Annotator "RC"]
[ECO "B22"]
[WhiteElo "1856"]
[BlackElo "2248"]
[PlyCount "76"]
[EventDate "2025.04.15"]
[EventType "swiss"]
[EventCountry "ESP"]
[SourceTitle "playchess.com"]
[Source "ChessBase"]
[SourceQuality "1"]
[TimeControl "5400+30"]

1. e4 {[%emt 0:00:01]} c5 {[%emt 0:00:40]} 2. c3 {[%emt 0:00:08]} d5 {[%emt 0:01:17]} 3. exd5 {[%emt 0:00:08]} Qxd5 {[%emt 0:00:08]} 4. d4 {[%emt 0:00:08]} e6 {[%emt 0:01:27]} 5. Nf3 {[%emt 0:00:34]} Nf6 {[%emt 0:01:31]} 6. Na3 {[%emt 0:00:30]} a6 {[%emt 0:03:32]} 7. Nc2 {[%emt 0:08:05]} Nc6 {[%emt 0:03:40]} 8. Be2 {[%emt 0:02:01]} cxd4 {[%emt 0:02:49]} 9. Ncxd4 {[%emt 0:02:50]} Nxd4 {[%emt 0:00:47]} 10. Qxd4 {[%emt 0:02:20]} Bc5 {[%emt 0:01:02]} 11. Qxd5 {[%emt 0:01:45]} Nxd5 {[%emt 0:00:06]} 12. Bc4 {[%emt 0:03:16]} Nb6 {[%emt 0:03:29]} 13. Bd3 {[%emt 0:13:32]} f6 {[%emt 0:01:54]} 14. O-O {[%emt 0:04:29]} Bd7 {[%emt 0:06:36]} 15. Re1 {[%emt 0:04:38]} O-O-O {[%emt 0:09:24]} 16. b4 {[%emt 0:09:02]} Bf8 {[%emt 0:01:17]} 17. Be3 {[%emt 0:04:47]} Nd5 {[%emt 0:00:13]} 18. Bc4 {[%emt 0:03:21]} Nxe3 {[%emt 0:03:20]} 19. Rxe3 {[%emt 0:04:02]} e5 {[%emt 0:00:08]} 20. Rd1 {[%emt 0:07:22]} Be7 {[%emt 0:03:28]} 21. Red3 {[%emt 0:04:44]} Kc7 {[%emt 0:02:24]} 22. Ne1 {[%emt 0:02:25]} f5 {[%emt 0:27:36]} 23. Nc2 {[%emt 0:07:23]} f4 {[%emt 0:00:08]} 24. Bb3 {[%emt 0:02:37]} Bf6 {[%emt 0:03:02]} 25. f3 {[%emt 0:04:35]} g5 {[%emt 0:03:21]} 26. a4 {[%emt 0:04:53]} Rhe8 {[%emt 0:03:34]} 27. Na3 {[%emt 0:01:03]} e4 {[%emt 0:06:15]} 28. fxe4 {[%emt 0:01:00]} Rxe4 {[%emt 0:00:43]} 29. Kf2 {[%emt 0:01:44]} Bg4 {[%emt 0:01:42]} 30. Rxd8 {[%emt 0:00:57]} Bxd8 {[%emt 0:00:18]} 31. Rd3 {[%emt 0:00:41]} Bf6 {[%emt 0:03:24]} 32. b5 {[%emt 0:00:42]} Re2+ {[%emt 0:01:03]} 33. Kg1 {[%emt 0:00:23]} Be7 {[%emt 0:01:34]} 34. h3 {[%emt 0:00:51]} Bf5 {[%emt 0:01:22]} 35. Rd5 {[%emt 0:00:05]} Be6 {[%emt 0:00:16]} 36. b6+ {[%emt 0:00:24]} Kc6 {[%emt 0:00:38]} 37. Bc4 {[%emt 0:00:32]} Bxd5 {[%emt 0:00:16]} 38. Bxe2 {[%emt 0:00:09]} Bxa3 {[%emt 0:00:06]} 0-1

[Event "51st La Roda Open 2025"]
[Site "La Roda"]
[Date "2025.04.15"]
[Round "1.15"]
[White "Garcia Jimenez, Santiago"]
[Black "De Martin Burtseva, Ivan"]
[Result "1-0"]
[Annotator "RC"]
[ECO "D30"]
[WhiteElo "2241"]
[BlackElo "1851"]
[PlyCount "49"]
[EventDate "2025.04.15"]
[EventType "swiss"]
[EventCountry "ESP"]
[SourceTitle "playchess.com"]
[Source "ChessBase"]
[SourceQuality "1"]
[TimeControl "5400+30"]

1. c4 {[%emt 0:00:06]} e6 {[%emt 0:00:08]} 2. Nf3 {[%emt 0:01:06]} Nf6 {[%emt 0:00:52]} 3. g3 {[%emt 0:00:23]} d5 {[%emt 0:00:09]} 4. Bg2 {[%emt 0:00:07]} Be7 {[%emt 0:03:25]} 5. O-O {[%emt 0:00:13]} O-O {[%emt 0:00:11]} 6. b3 {[%emt 0:00:30]} c5 {[%emt 0:00:40]} 7. cxd5 {[%emt 0:00:21]} exd5 {[%emt 0:00:14]} 8. d4 {[%emt 0:00:19]} Nc6 {[%emt 0:00:38]} 9. Bb2 {[%emt 0:00:20]} Bf5 {[%emt 0:03:03]} 10. dxc5 {[%emt 0:04:08]} Bxc5 {[%emt 0:00:14]} 11. Nc3 {[%emt 0:02:36]} Rc8 {[%emt 0:05:28]} 12. a3 {[%emt 0:00:40]} Be4 {[%emt 0:09:59]} 13. Rc1 {[%emt 0:03:49]} Qe7 {[%emt 0:02:50]} 14. b4 {[%emt 0:01:28]} Bb6 {[%emt 0:02:25]} 15. Na4 {[%emt 0:04:57]} Bc7 {[%emt 0:05:26]} 16. Nc5 {[%emt 0:04:16]} Rfd8 {[%emt 0:02:25]} 17. Nxb7 {[%emt 0:03:58]} Rd7 {[%emt 0:01:55]} 18. Rxc6 {[%emt 0:01:13]} d4 {[%emt 0:00:16]} 19. Rxc7 {[%emt 0:04:26]} Rdxc7 {[%emt 0:02:03]} 20. Nc5 {[%emt 0:00:11]} Bxf3 {[%emt 0:05:55]} 21. Bxf3 {[%emt 0:00:22]} Nd7 {[%emt 0:01:38]} 22. Qxd4 {[%emt 0:00:52]} f6 {[%emt 0:00:18]} 23. Bg4 {[%emt 0:03:13]} Ne5 {[%emt 0:04:55]} 24. Qd5+ {[%emt 0:01:25]} Kh8 {[%emt 0:00:23]} 25. Bxc8 {[%emt 0:00:07]} 1-0

[Event "51st La Roda Open 2025"]
[Site "La Roda"]
[Date "2025.04.15"]
[Round "1.16"]
[White "Carrilero Moya, Pablo"]
[Black "Aishwin Daniel"]
[Result "0-1"]
[Annotator "RC"]
[ECO "E21"]
[WhiteElo "1844"]
[BlackElo "2236"]
[PlyCount "64"]
[EventDate "2025.04.15"]
[EventType "swiss"]
[EventCountry "ESP"]
[SourceTitle "playchess.com"]
[Source "ChessBase"]
[SourceQuality "1"]
[TimeControl "5400+30"]

1. d4 {[%emt 0:00:16]} e6 {[%emt 0:00:13]} 2. c4 {[%emt 0:00:08]} f5 {[%emt 0:00:16]} 3. Nf3 {[%emt 0:01:16]} Nf6 {[%emt 0:00:23]} 4. Nc3 {[%emt 0:01:36]} Bb4 {[%emt 0:00:50]} 5. Bd2 {[%emt 0:01:26]} O-O {[%emt 0:00:19]} 6. e3 {[%emt 0:02:25]} d6 {[%emt 0:03:30]} 7. a3 {[%emt 0:02:43]} Bxc3 {[%emt 0:00:37]} 8. Bxc3 {[%emt 0:00:47]} Ne4 {[%emt 0:00:47]} 9. Qc2 {[%emt 0:05:05]} b6 {[%emt 0:03:27]} 10. Be2 {[%emt 0:07:23]} Bb7 {[%emt 0:02:27]} 11. Rd1 {[%emt 0:05:04]} Nd7 {[%emt 0:02:03]} 12. d5 {[%emt 0:06:34]} e5 {[%emt 0:01:22]} 13. Nd2 {[%emt 0:06:49]} Nxc3 {[%emt 0:03:07]} 14. Qxc3 {[%emt 0:02:04]} a5 {[%emt 0:00:24]} 15. b4 {[%emt 0:08:08]} Rf6 {[%emt 0:16:11]} 16. e4 {[%emt 0:05:19]} f4 {[%emt 0:02:52]} 17. Bg4 {[%emt 0:07:28]} Nf8 {[%emt 0:08:05]} 18. h4 {[%emt 0:08:19]} Bc8 {[%emt 0:02:39]} 19. Bf3 {[%emt 0:02:34]} Rh6 {[%emt 0:01:12]} 20. h5 {[%emt 0:01:07]} Qg5 {[%emt 0:02:11]} 21. Ke2 {[%emt 0:00:49]} Bd7 {[%emt 0:06:08]} 22. Rdg1 {[%emt 0:02:47]} Rf6 {[%emt 0:18:05]} 23. b5 {[%emt 0:08:21]} h6 {[%emt 0:01:08]} 24. g3 {[%emt 0:02:42]} Nh7 {[%emt 0:03:40]} 25. Rh2 {[%emt 0:06:19]} fxg3 {[%emt 0:05:11]} 26. Rxg3 {[%emt 0:00:32]} Qf4 {[%emt 0:00:20]} 27. Rhg2 {[%emt 0:00:28]} Ng5 {[%emt 0:01:58]} 28. Kd3 {[%emt 0:03:20]} Nxf3 {[%emt 0:02:24]} 29. Rxg7+ {[%emt 0:02:10]} Kh8 {[%emt 0:00:12]} 30. Rxd7 {[%emt 0:00:26]} Ne1+ {[%emt 0:00:42]} 31. Ke2 {[%emt 0:00:38]} Nxg2 {[%emt 0:00:14]} 32. f3 {[%emt 0:00:11]} Rf7 {[%emt 0:00:24]} 0-1